Cogmind - Beta 9 @@@ ROGUE MODE // 2019.10.25 @ 15:32:40 Player: ModulinMyGlobulin Result: Self-destructed Performance ------------- Evolutions (2) 1000 Regions Visited (3) 600 Robots Destroyed (22) 110 Value Destroyed (693) 693 Prototype IDs (1) 20 Alien Tech Used (0) 0 Bonus (0) 0 TOTAL SCORE: 2423 Bonus ------- None Cogmind --------- Core Integrity 550/550 Matter 155/300 Energy 265/265 System Corruption 0% Temperature Cool (135) Location -8/Materials Parts ------- Power (1) Improved Ion Engine Propulsion (4) Aluminum Leg Aluminum Leg Aluminum Leg Aluminum Leg Utility (4) Large Storage Unit Improved Signal Interpreter Targeting Computer Power Shielding Weapon (2) Medium Laser Beam Rifle Inventory (10) Light Deuterium Engine Light Nuclear Core Wheel Heavy Assault Rifle Shotgun Grenade Launcher Peak State ------------ Power Light Deuterium Engine Propulsion Light Treads Wheel Compact Wheel Utility Small Storage Unit Power Shielding Shield Generator Weapon Advanced Beam Cannon Shotgun Inventory Light Deuterium Engine Light Nuclear Core Aluminum Leg Aluminum Leg Medium Laser Grenade Launcher [Rating: 16] Favorites ----------- Power Light Deuterium Engine Engine Light Deuterium Engine Propulsion Aluminum Leg Treads Light Treads Leg Aluminum Leg Wheel Wheel Utility Power Shielding Device Shield Generator Storage Large Storage Unit Processor Targeting Computer Protection Power Shielding Weapon Shotgun Energy Gun Beam Rifle Energy Cannon Advanced Beam Cannon Ballistic Gun Shotgun Launcher Grenade Launcher Build | -11 -10 -9 -8 ------- Run | Scr Mat Mat Mat Slots Evolved 4 | . . 2 2 Power . | . . . . Propulsion 2 | . . 1 1 Utility 2 | . . 1 1 Weapon . | . . . . Parts Attached 32 | 6 3 18 5 Power 3 | 1 . 2 . Engine 3 | 1 . 2 . Core . | . . . . Reactor . | . . . . Propulsion 10 | 2 . 7 1 Treads 1 | . . 1 . Leg 7 | . . 6 1 Wheel 2 | 2 . . . Hover . | . . . . Flight . | . . . . Utility 8 | 1 2 3 2 Device 2 | . 1 1 . Storage 2 | 1 . 1 . Processor 2 | . . . 2 Hackware . | . . . . Protection 2 | . 1 1 . Artifact . | . . . . Weapon 11 | 2 1 6 2 Energy Gun 5 | 1 1 1 2 Energy Cannon 1 | . . 1 . Ballistic Gun 3 | 1 . 2 . Ballistic Cannon . | . . . . Launcher 2 | . . 2 . Special Weapon . | . . . . Impact Weapon . | . . . . Slashing Weapon . | . . . . Piercing Weapon . | . . . . Special Melee Weapon . | . . . . Unidentified Prototypes 1 | . . 1 . Parts Lost 10 | . . 10 . Power 1 | . . 1 . Propulsion 4 | . . 4 . Utility 2 | . . 2 . Weapon 3 | . . 3 . Highest Loss Streak 3 | . . 3 . Average Slot Usage (%) 95 | . 96 95 100 Engine 11 | . 14 10 9 Treads 1 | . . 1 . Leg 23 | . . 27 36 Wheel 6 | . 28 2 . Device 5 | . 1 6 . Storage 11 | . 14 11 9 Protection 13 | . 9 14 9 Energy Gun 7 | . 14 5 6 Energy Cannon 1 | . . 2 . Ballistic Gun 10 | . 14 10 6 Launcher 1 | . . 1 6 Naked Turns . | . . . . Heaviest Build 33 | 12 15 33 30 Greatest Support 40 | 26 26 30 40 Greatest Overweight (x) 3 | 3 . 1 . Average Overweight (x) . | . . . . Largest Inventory Capacity 10 | 6 6 10 10 Average Capacity 8 | 5 6 8 10 Most Carried 10 | 6 6 10 8 Average Carried 7 | 2 5 7 6 Final Capacity 10 | . . . 10 Final Carried 6 | . . . 6 Class Distribution -------------------- 76% | Mutant 23% | Scavenger-Mutant Dominant Class ---------------- Mutant | -10/Materials Mutant | -9/Materials Scavenger-Mutant | -8/Materials Resources | -11 -10 -9 -8 ----------- Run | Scr Mat Mat Mat Matter Collected 554 | 123 45 386 . Remotely . | . . . . Salvage Created 770 | . 45 725 . Parts 56 | . 3 53 . Haulers Intercepted . | . . . . Recyclers Shooed 2 | . . 2 . Parts Field Recycled . | . . . . Retrieved Matter . | . . . . Parts Self-Destructed . | . . . . Prevented . | . . . . Kills | -11 -10 -9 -8 ------- Run | Scr Mat Mat Mat Combat Hostiles Destroyed 20 | . 1 19 . Guns 14 | . 1 13 . Cannons 3 | . . 3 . AOE 3 | . . 3 . Classes Destroyed 5 | . 1 4 . Worker 2 | . . 2 . Swarmer 4 | . . 4 . Grunt 10 | . 1 9 . Duelist 1 | . . 1 . Sentry 5 | . . 5 . Best Kill Streak 7 | . 1 7 . Combat Bots Only 6 | . 1 6 . Max Kills in Single Turn 2 | . 1 2 . Gunslinging . | . . . . Exploded 1 | . . 1 . Melee . | . . . . Uniques/NPCs Destroyed . | . . . . Combat | -11 -10 -9 -8 -------- Run | Scr Mat Mat Mat Damage Taken 1275 | . 147 1055 73 Core 158 | . 59 99 . Absorbed by Shields 177 | . . 177 . Core Remaining (%) 83 | 100 76 75 . Volleys Fired 60 | . 6 51 3 Largest 2 | . 2 2 2 Hottest 106 | . 60 91 106 Shots Fired 103 | . 12 85 6 Gun 80 | . 12 62 6 Cannon 15 | . . 15 . Launcher 8 | . . 8 . Special . | . . . . Kinetic 45 | . 6 39 . Thermal 50 | . 6 38 6 Explosive 8 | . . 8 . Electromagnetic . | . . . . Robot Hit Streak 9 | . 2 9 4 Robot Miss Streak 4 | . 2 4 3 Penetration Max . | . . . . Secondary Targets 1 | . . 1 . Max Gunslinging Chain 1 | . . 1 . Shots Hit Robots 66 | . 6 56 4 Core Hits 43 | . 3 40 . Critical Hits 1 | . . 1 . Critical Kills 1 | . . 1 . Critical Parts Destroyed . | . . . . Melee Attacks . | . . . . Impact . | . . . . Slashing . | . . . . Piercing . | . . . . Sneak Attacks . | . . . . Combat Hostiles . | . . . . Follow-up Attacks . | . . . . Damage Inflicted 1236 | . 90 1093 53 Guns 795 | . 75 667 53 Cannons 185 | . . 185 . Explosions 228 | . . 228 . Melee . | . . . . Ramming 28 | . 15 13 . Kinetic 461 | . 30 431 . Thermal 519 | . 45 421 53 Explosive 228 | . . 228 . Electromagnetic . | . . . . Impact . | . . . . Slashing . | . . . . Piercing . | . . . . Highest Corruption . | . . . . Average Corruption . | . . . . Corruption Purged . | . . . . Overload Shots . | . . . . Overflow Damage . | . . . . Projectiles . | . . . . Explosions . | . . . . Melee . | . . . . Knockbacks . | . . . . Impact . | . . . . Kinetic . | . . . . Secondary . | . . . . Self-Inflicted Damage 9 | . 7 2 . Shots . | . . . . Rammed 5 | . 3 2 . Targets Rammed 7 | . 3 4 . Kicked 2 | . . 2 . Crushed . | . . . . Highest Temperature 312 | . 54 312 135 Average Temperature 93 | . 30 100 76 Received Heat Transfer 532 | . 81 406 45 Effects 1 | . . 1 . Energy Bleed 1 | . . 1 . Siege Activations . | . . . . Robots Corrupted . | . . . . Combat Hostiles . | . . . . Parts Fried . | . . . . Impact Corruptions . | . . . . Robots Melted . | . . . . Combat Hostiles . | . . . . Parts Melted . | . . . . Heat Transferred 1173 | . 100 925 148 Parts Sabotaged . | . . . . Parts Stolen . | . . . . Parts Stripped . | . . . . Power Chain Reactions . | . . . . Missiles Intercepted . | . . . . Alert | -11 -10 -9 -8 ------- Run | Scr Mat Mat Mat Peak Influence 361 | . 75 361 108 Average Influence 167 | . 37 203 107 Maximum Alert Level 1 | . . 1 . Low Security (%) 55 | . . . . Level 1 44 | . . . . Level 2 . | . . . . Level 3 . | . . . . Level 4 . | . . . . Level 5 . | . . . . High Security . | . . . . Max Security . | . . . . Squads Dispatched 6 | . . 5 1 Investigation 1 | . . 1 . Extermination . | . . . . Reinforcement 5 | . . 4 1 Assault . | . . . . Garrison . | . . . . Intercept . | . . . . Construction Impeded . | . . . . Haulers Reinforced . | . . . . Stealth | -11 -10 -9 -8 --------- Run | Scr Mat Mat Mat Distress Signals 2 | . 1 1 . Communications Jammed . | . . . . Distress Signals . | . . . . Times Spotted 45 | . 6 35 4 Peak Tracking Total 10 | . 4 10 4 Tactical Retreats 3 | . 1 2 . Traps | -11 -10 -9 -8 ------- Run | Scr Mat Mat Mat Traps Triggered 1 | . . 1 . Indirectly . | . . . . Trap Hack Attempts . | . . . . Triggered . | . . . . Disarmed . | . . . . Reprogrammed . | . . . . Reused . | . . . . Traps Extracted . | . . . . Installed . | . . . . Triggered . | . . . . Machines | -11 -10 -9 -8 ---------- Run | Scr Mat Mat Mat Machines Disabled . | . . . . Max in Single Turn . | . . . . Machines Sabotaged . | . . . . Garrisons Compromised . | . . . . Overloaded Fab Kills . | . . . . Fab Network Shutdowns . | . . . . Hacking | -11 -10 -9 -8 --------- Run | Scr Mat Mat Mat Machines Accessed 3 | . . 3 . Terminals 3 | . . 3 . Fabricators . | . . . . Repair Stations . | . . . . Recycling Units . | . . . . Scanalyzers . | . . . . Garrison Access . | . . . . Total Hacks 4 | . . 4 . Successful 2 | . . 2 . Failed 2 | . . 2 . Catastrophic . | . . . . Database Lockouts . | . . . . Manual . | . . . . Terminals 4 | . . 4 . Fabricators . | . . . . Repair Stations . | . . . . Recycling Units . | . . . . Scanalyzers . | . . . . Garrison Access . | . . . . Terminal Hacks 2 | . . 2 . Dispatch Records 1 | . . 1 . Recall Reinforcements 1 | . . 1 . Fabricator Hacks . | . . . . Repair Station Hacks . | . . . . Recycling Unit Hacks . | . . . . Scanalyzer . | . . . . Garrison Access Hacks . | . . . . Unauthorized Hacks . | . . . . Terminals . | . . . . Fabricators . | . . . . Repair Stations . | . . . . Recycling Units . | . . . . Scanalyzers . | . . . . Garrison Access . | . . . . Data Cores Recovered . | . . . . Used . | . . . . Hacking Detections 2 | . . 2 . Full Trace Events . | . . . . Feedback Events . | . . . . Feedback Blocked . | . . . . Robot Schematics Acquired . | . . . . Robots Built . | . . . . Matter . | . . . . Time . | . . . . Total Robot Build Rating . | . . . . Part Schematics Acquired . | . . . . Parts Built . | . . . . Matter . | . . . . Time . | . . . . Total Part Build Rating . | . . . . Parts Repaired . | . . . . Time . | . . . . Parts Recycled . | . . . . Recycled Matter . | . . . . Retrieved Matter . | . . . . Retrieved Components . | . . . . Parts Scanalyzed . | . . . . Part Schematics Acquired . | . . . . Parts Damaged . | . . . . Bothacking | -11 -10 -9 -8 ------------ Run | Scr Mat Mat Mat Used RIF Installer . | . . . . Robots Hacked . | . . . . Non-combat . | . . . . Combat . | . . . . Robot Hacks Applied . | . . . . Relay Couplers Released . | . . . . Robots Rewired . | . . . . Allies Hacked . | . . . . Hacks Repelled . | . . . . Allies | -11 -10 -9 -8 -------- Run | Scr Mat Mat Mat Total Allies . | . . . . Largest Group . | . . . . Highest-Rated Group . | . . . . Highest-Rated Ally . | . . . . Total Orders . | . . . . Ally Attacks . | . . . . Total Damage . | . . . . Kills . | . . . . Allies Corrupted . | . . . . Allies Melted . | . . . . Intel | -11 -10 -9 -8 ------- Run | Scr Mat Mat Mat Robot Analysis Total . | . . . . Derelict Logs Recovered . | . . . . Drone Launches . | . . . . Drone Recoveries . | . . . . Exploration | -11 -10 -9 -8 ------------- Run | Scr Mat Mat Mat Turns Passed 1285 | 68 177 1004 36 Spaces Moved 910 | 55 165 673 17 Core 35 | 35 . . . Treads . | . . . . Legs 588 | . . 571 17 Wheels 287 | 20 165 102 . Hover . | . . . . Flight . | . . . . Fastest Speed 50 | 50 90 90 120 Average Speed 112 | 96 90 118 120 Slowest Speed 200 | 200 90 150 120 Overloaded Moves . | . . . . Propulsion Burnouts . | . . . . Robots Hopped . | . . . . Cave-ins Triggered . | . . . . Exploration Rate (%) 29 | 3 36 75 5 Regions Visited 3 Branch Regions . Pre-discovered Areas . | . . . . Known Exits Taken . | . . . . Unknown Exits Taken 3 | 1 1 1 . Scrap Searched . | . . . . Spaces Dug . | . . . . Terrain Destroyed 55 | . . 55 . Melee . | . . . . Projectile . | . . . . AOE 55 | . . 55 . Actions | -11 -10 -9 -8 --------- Run | Scr Mat Mat Mat Total 1062 | 66 182 789 25 Wait 29 | . . 29 . Move 907 | 54 164 672 17 Hop . | . . . . Pick Up 18 | 6 2 10 . Fast Attach 15 | 6 2 7 . Attach 10 | . . 7 3 Detach . | . . . . Swap 7 | . 1 4 2 Drop 9 | . 4 5 . Fire 60 | . 6 51 3 Melee . | . . . . Ram 3 | . 3 . . Kick 4 | . . 4 . Crush . | . . . . Escape Stasis . | . . . . Rewire . | . . . . Trap . | . . . . Miscellaneous . | . . . . Route ------- -11/Scrapyard -10/Materials -9/Materials (discovered 2 exits: [*Mat] / [*Min]) -8/Materials History --------- Turn | Location | Event 5 | -11/Scrapyard | Discovered new exit (range 15) 69 | -11/Scrapyard | Entered Materials 228 | -10/Materials | Discovered new exit (range 16) 246 | -10/Materials | Entered another Materials area 246 | -9/Materials | Evolved 2 slots: Propulsion x1, Utility x1 306 | -9/Materials | Build established: Mutant 903 | -9/Materials | Discovered new exit (range 13) 966 | -9/Materials | Lost 3 parts (1p1n1u) 1217 | -9/Materials | Discovered new exit (range 16) 1250 | -9/Materials | Entered another Materials area 1250 | -8/Materials | Evolved 2 slots: Propulsion x1, Utility x1 1286 | -8/Materials | Self-destructed Last Messages --------------- 01220_ G-34 Mercenary destroyed. 01225_ The unstable cave ceiling collapses. 01235_ Aluminum Leg destroyed. 01237_ Lgt. Armor Plating destroyed. 01239_ U-05 Engineer lays Concrete. 01241_ Acquired Aluminum Leg. 01243_ R-06 Scavenger collects Sml. Laser. 01245_ U-05 Engineer lays Concrete. 01246_ Acquired Aluminum Leg. 01246_ R-06 Scavenger collects Ion Engine. 01246_ U-05 Engineer lays Concrete. PARAMETERS=PROPULSION_1,UTILITY_1 LOCATION=UNKNOWN GOAL=ESCAPE 01280_ K-01 Serf collects debris. 01282_ O-16 Technician: "IFF HANDSHAKE FAILED. SECURING TERMINAL." 01283_ K-01 Serf collects debris. 01284_ ALERT: Hostiles spotted, dispatching reinforcements to Terminal M004. 01285_ K-01 Serf collects debris. Map ----- +----------------------------------------------------+ | ?????????????????????????????????????????????????? | | ?????????????????????????????????????????????????? | | ?????????????????????????????????????????????????? | | ?????????????????????????????????????????????????? | | ?????????????????????????????????????????????????? | | ?????????????????????????????????????????????????? | | ?????????????????????????????????????????????????? | | ?????????????????????????????????????????????????? | | ?????????????????????????????????????????????????? | | ?????????????????????????????????????????????????? | | ?????????????????????????????????????????????????? | | ?????????????????????????????????????????????????? | | ?????????????????????????????????????????????????? | | ?????????????????????????????????????????????????? | | ?????????????????????????????????????????????????? | | ?????????????????????????????????????????????????? | | ?????????????????????????????????????????????????? | | ?????????????????????????????????????????????????? | | ?????????????????????????????????????????????????? | | ?????????????????????????????????????????????????? | | ?????????????????????????????????????????????????? | | ?????????????????????????????????????????????????? | | ?????????????????????????????????????????????????? | | ?????????????????????????????????????????????????? | | ????????????????#####;#######################????? | | ?????????? b @ #????? | | ?????????? ggk #????? | | ??????????k #????? | | ??????????? #######+#############????? | | ??????????? ????? ???????????????? | | ????????????###!!! ????# ?????????????? | | ??????????????#!! ????# #????????????? | | ??????????????#!! ?????# #????????????? | | ??????????????# ?????# #????????????? | | ??????????????# ??????# #????????????? | | ??????????????+ ??????# #????????????? | | ??????????????######???????# #????????????? | | ???????????????????????????# #????????????? | | ???????????????????????????##########????????????? | | ?????????????????????????????????????????????????? | | | | | | | | | | | | | | | | | | | | | +----------------------------------------------------+ Best States ------------- Heat Dissipation 31 Energy Generation 14 Energy Capacity 265 Matter Stores 243 Matter Capacity 300 Sight Range 16 Robot Scan Range 10 Terrain Scan Density 10 Armor Coverage 150 Power Shielding 33 Evasion (%) 50 Targeting Accuracy 5 Item Schematics ----------------- None Robot Schematics ------------------ None Fabricated ------------ Nothing Alien Tech Used ----------------- None Achievements -------------- None Challenges ------------ None Game ------ Seed WeightBackupNanosword Manual? 0 Play Time 00:20:29 Cumulative 41.6 hours Start 2019.10.25 @ 15:11:11 End 2019.10.25 @ 15:32:40 Sessions 1 Manual Loads 0 Difficulty Rogue Special Mode None Game No. 112 Rogue 112 Adventurer 0 Explorer 0 Win Type - Total 0 Types 0/0/0/0/0/0/0 Lore% 34 Gallery% 36 Achievement% 18 Wizard Run 0 Options --------- ASCII 0 Keyboard 0 Movement Arrows Keybinds 0 Fullscreen 1 Font 18/SmallcapsGlow Map View 76x50 Tactical HUD 1 Map Filters NONE Filters NONE Steam X RUN: e69d1f0e-f07e-4c48-aa76-9edcfe22d258